[Event "5th Sharjah Masters 2022"]
[Site "Sharjah"]
[Date "2022.05.21"]
[Round "1.31"]
[White "Mastrovasilis, Dimitrios"]
[Black "Kamalidenova, Meruert"]
[Result "0-1"]
[ECO "C55"]
[WhiteElo "2613"]
[BlackElo "2408"]
[Annotator "TA"]
[PlyCount "28"]
[EventDate "2022.05.21"]
[EventType "swiss"]
[EventCountry "UAE"]
[SourceTitle "playchess.com"]
[Source "ChessBase"]
[SourceQuality "1"]
[TimeControl "5400+30"]

{[%evp 10,28,32,24,20,16,34,24,31,29,37,20,58,34,39,34,64,69,62,57,67]} 1. e4 {[%emt 0:00:05]} e5 {[%emt 0:00:13]} 2. Nf3 {[%emt 0:00:22]} Nc6 {[%emt 0:00:07]} 3. Bc4 {[%emt 0:02:03]} Nf6 {[%emt 0:00:26]} 4. d3 {[%emt 0:00:18]} h6 {[%emt 0:00:27]} 5. O-O {[%emt 0:01:05]} d6 {[%emt 0:00:45]} 6. Re1 {[%emt 0:04:32]} Na5 {[%emt 1:31:32] 6...g5 is a critical line. C55: Two Knights: 4 d3, 4 d4 exd4 5 e5 and Max Lange Attack.} 7. Bd5 {[%emt 0:17:17]} c6 {[%emt 0:00:00] [#]} 8. Bxf7+ {[%emt 0:00:38]} Kxf7 {[%emt 0:00:00] White has an edge.} 9. b4 {[%emt 0:00:05][%cal Bb2b4,Bb4a5,Ba5a6][%mdl 32]} Be7 {[%emt 0:00:00][%cal Oc8e6] [#]} 10. bxa5 $146 {[%emt 0:03:55]} ({Predecessor:} 10. Bd2 g5 11. Bc3 b5 12. bxa5 c5 13. a3 g4 14. Nfd2 Qg8 15. Nf1 Be6 16. Bd2 {½-½ (128) Tomazini,Z (2439)-Santos Ruiz,M (2543) Caleta 2019}) 10... Rf8 {[%emt 0:00:00]} 11. a6 {[%emt 0:03:03] White is slightly better.} (11. d4 $5 {[%cal Rd4e5]}) 11... b6 {[%emt 0:00:00]} 12. d4 {[%emt 0:00:48]} Qc7 {[%emt 0:00:00]} 13. Bb2 {[%emt 0:08:57][%cal Rd4e5]} Nd7 {[%emt 0:00:00]} 14. dxe5 {[%emt 0:11:57]} dxe5 {[%emt 0:00:00][%mdl 32768] Weighted Error Value: White=0.06 (flawless) /Black=0.08 (flawless) . Loss on time!?} 0-1

[Event "5th Sharjah Masters 2022"]
[Site "Sharjah"]
[Date "2022.05.21"]
[Round "1.32"]
[White "Erdogdu, Mert"]
[Black "Sethuraman, S.P."]
[Result "0-1"]
[ECO "B63"]
[WhiteElo "2407"]
[BlackElo "2613"]
[Annotator "TA"]
[PlyCount "80"]
[EventDate "2022.05.21"]
[EventType "swiss"]
[EventCountry "UAE"]
[SourceTitle "playchess.com"]
[Source "ChessBase"]
[SourceQuality "1"]
[TimeControl "5400+30"]

{[%evp 25,80,0,0,0,0,0,35,0,0,-25,-22,-45,-47,-51,-23,-68,-75,-96,-80,-207,-219,-231,-218,-332,-189,-213,-112,-414,-375,-385,-424,-422,-386,-468,-500,-965,-938,-798,-745,-1331,-29969,-29969,-327,-29970,-29971,-29971,-29972,-29971,-29973,-29973,-29974,-29974,-29975,-29975,-29976,-29969,-29973]} 1. e4 {[%emt 0:00:04]} c5 {[%emt 0:00:23]} 2. Nf3 {[%emt 0:00:11]} Nc6 {[%emt 0:00:04]} 3. d4 {[%emt 0:00:20]} cxd4 {[%emt 0:00:06]} 4. Nxd4 {[%emt 0:00:05]} Nf6 {[%emt 0:00:04]} 5. Nc3 {[%emt 0:00:07]} d6 {[%emt 0:00:04]} 6. Bg5 {[%emt 0:01:12]} e6 {[%emt 0:00:07]} 7. Qd2 {[%emt 0:00:10]} a6 {[%emt 0:00:06]} 8. O-O-O {[%emt 0:00:25]} Be7 {[%emt 0:00:05]} 9. f3 {[%emt 0:00:48]} Nxd4 {[%emt 0:00:07]} 10. Qxd4 {[%emt 0:00:07]} b5 {[%emt 0:00:04]} 11. Kb1 {[%emt 0:03:50]} Bb7 {[%emt 0:00:13]} 12. h4 {[%emt 0:05:04]} O-O {[%emt 0:00:15]} 13. Qd2 {[%emt 0:00:47] 13.g4 is the hot move.} Qc7 {[%emt 0:00:07]} 14. Ne2 {[%emt 0:03:24] B63: Sicilian: Richter-Rauzer: 7...Be7 and unusual Black 7th moves.} Rfc8 {[%emt 0:11:25]} 15. Nd4 {[%emt 0:02:59] [#]} b4 $146 {[%emt 0:00:46]} (15... d5 16. e5 Ne8 17. Bxe7 Qxe7 18. c3 $16) ({Predecessor:} 15... h6 16. Be3 Nd7 17. g4 d5 18. g5 h5 19. g6 Bf6 20. gxf7+ Kxf7 21. Bh3 Nf8 {1-0 (40) Manik,M (2366)-Skalsky,A (2236) Skalica 2020}) 16. Bd3 {[%emt 0:01:45] White is slightly better.} (16. Qxb4 $2 e5 17. Qc4 (17. Bxf6 $2 Bxf6 18. Qc4 exd4 $19) 17... exd4 18. Qxc7 Rxc7 $19) 16... a5 {[%emt 0:00:04][%cal Ba6a5,Ba5a4][%mdl 32]} 17. g4 {[%emt 0:12:40]} Ba6 {[%emt 0:02:00]} 18. Be3 {[%emt 0:04:30]} Nd7 {[%emt 0:10:30]} 19. g5 {[%emt 0:03:30]} Ne5 {[%emt 0:12:18]} 20. h5 {[%emt 0:04:33]} a4 {[%emt 0:12:51][%cal Ob4b3] Black continues to play with concentration.} 21. g6 {[%emt 0:06:36]} b3 {[%emt 0:08:35]} 22. h6 {[%emt 0:02:39]} (22. Bxa6 $17 {might work better.} bxa2+ 23. Ka1 Rxa6 24. gxf7+ Kxf7 25. Nxe6) 22... fxg6 $19 {[%emt 0:05:49] And now ...bxc2+ would win.} 23. hxg7 {[%emt 0:02:05][%cal Oh1h7] aiming for Rxh7!} Bf6 {[%emt 0:16:15] The board is on fire.} 24. Qh2 {[%emt 0:28:45]} ({Avoid the trap} 24. Nxe6 $2 Bxd3 $1 25. Nxc7 (25. cxd3 $2 Qc2+ 26. Ka1 a3 $19) 25... bxc2+ 26. Kc1 cxd1=Q+ 27. Kxd1 Rxc7 $19) (24. Bxa6 $142 Rxa6 25. cxb3 (25. f4 $2 Nf3 $19) 25... axb3 26. Qh2) 24... Qxg7 {[%emt 0:02:19]} (24... bxa2+ $142 25. Kxa2 Bc4+ 26. Ka1 h5 27. Bxc4 Qxc4) 25. Qh3 {[%emt 0:05:30] Bxa6 is the strong threat.} Bc4 {[%emt 0:08:05] Active counter play!} ({Black should play} 25... bxa2+ $19 26. Kxa2 Qf7 27. Bxa6 Rxa6) 26. Bxc4 $4 {[%emt 0:05:19][%mdl 8192]} (26. axb3 $17 {was the crucial defense.} axb3 27. Bxc4 Nxc4 28. Qxe6+ Qf7 29. Qxf7+ Kxf7 30. Bc1 Bxd4 31. Rxd4 bxc2+ 32. Kxc2) 26... Nxc4 {[%emt 0:00:16]} 27. Qxe6+ {[%emt 0:00:20]} Qf7 $1 {[%emt 0:00:05]} ({But not} 27... Kh8 {[#]} 28. Rxh7+ $3 {[%mdl 512]} Qxh7 29. Qxf6+ Kg8 30. Rg1 $1 $18) 28. Qxf7+ {[%emt 0:02:28]} Kxf7 {[%emt 0:00:08]} 29. Bf4 {[%emt 0:01:58]} bxc2+ {[%emt 0:00:52]} 30. Nxc2 {[%emt 0:00:05]} (30. Kxc2 $142 Rab8 31. b3 (31. Rxh7+ $2 Kg8 $19) 31... Ne3+ 32. Kd3 Nxd1 33. Rxd1) 30... Rab8 {[%emt 0:00:21]} 31. Rxh7+ {[%emt 0:01:38]} Kg8 {[%emt 0:00:51]} 32. Rh6 {[%emt 0:00:44] [#]} Na3+ $1 {[%emt 0:02:20][%mdl 512]} 33. Nxa3 {[%emt 0:00:05]} Rxb2+ {[%emt 0:00:04]} 34. Ka1 {[%emt 0:00:06]} Rd2+ {[%emt 0:00:05][%mdl 64] Discovered Attack. Black mates.} 35. e5 {[%emt 0:00:21]} Rxd1+ {[%emt 0:00:05]} 36. Kb2 {[%emt 0:00:01]} dxe5 {[%emt 0:00:06][%cal Re5f4]} 37. Bg5 {[%emt 0:01:27]} Bxg5 {[%emt 0:00:31]} 38. Rxg6+ {[%emt 0:00:06]} Kf7 {[%emt 0:00:02]} 39. Rxg5 {[%emt 0:00:05]} Rd2+ {[%emt 0:00:04]} 40. Kb1 {[%emt 0:00:11]} Rc3 {[%emt 0:00:41][%csl LRa3,LRf3] Weighted Error Value: White=0.70/Black=0.09 (flawless)} 0-1

[Event "5th Sharjah Masters 2022"]
[Site "Sharjah"]
[Date "2022.05.21"]
[Round "1.33"]
[White "Aryan Chopra"]
[Black "Buksa, Nataliya"]
[Result "1-0"]
[ECO "B31"]
[WhiteElo "2609"]
[BlackElo "2406"]
[Annotator "TA"]
[PlyCount "32"]
[EventDate "2022.05.21"]
[EventType "swiss"]
[EventCountry "UAE"]
[SourceTitle "playchess.com"]
[Source "ChessBase"]
[SourceQuality "1"]
[TimeControl "5400+30"]

{[%evp 9,32,20,20,12,16,18,6,12,10,12,21,0,0,0,0,0,0,2,73,64,169,172,185,183,278]} 1. e4 {[%emt 0:00:03] Nielsen,Peter Heine} c5 {[%emt 0:00:17]} 2. Nf3 {[%emt 0:00:05]} Nc6 {[%emt 0:00:11]} 3. Bb5 {[%emt 0:00:15]} g6 {[%emt 0:00:05]} 4. Bxc6 {[%emt 0:00:05]} bxc6 {[%emt 0:00:03]} 5. d4 {[%emt 0:00:51]} cxd4 {[%emt 0:00:31]} 6. Qxd4 {[%emt 0:00:06] B31: Sicilian: 2...Nc6 3 Bb5 g6.} f6 {[%emt 0:00:03]} 7. O-O {[%emt 0:05:59]} d6 {[%emt 0:00:22] [#]} 8. Be3 $146 {[%emt 0:00:06] The position is equal.} ({Predecessor:} 8. c4 c5 9. Qd3 Bg7 10. b3 Nh6 11. Nc3 Rb8 12. Bd2 O-O 13. Rae1 Nf7 14. h4 {0-1 (44) Vachier Lagrave,M (2778)-Carlsen,M (2882) Saint Louis 2019 CBM 192 [Nielsen,Peter Heine]}) 8... e5 {[%emt 0:08:16]} 9. Qd3 {[%emt 0:00:58]} d5 {[%emt 0:02:57]} 10. Rd1 {[%emt 0:00:39][%cal Re4d5]} Be6 {[%emt 0:01:12]} 11. Nc3 {[%emt 0:00:35][%cal Re4d5]} d4 {[%emt 0:16:04]} 12. Bxd4 {[%emt 0:05:50]} exd4 {[%emt 0:00:32]} 13. Nxd4 {[%emt 0:00:06]} Qc8 {[%emt 0:00:30] [#]} (13... Kf7 $11) 14. e5 $1 $16 {[%emt 0:16:30] White is more active.} f5 {[%emt 0:09:17]} (14... Kf7 $14) 15. Nxe6 $18 {[%emt 0:10:13]} Qxe6 {[%emt 0:00:13] [#]} 16. Nb5 $1 {[%emt 0:00:06] aiming for Nc7+.} Qc8 {[%emt 0:18:18] Against Nc7+.  Weighted Error Value: White=0.02 (flawless) /Black=0.24 (precise)} ({Not} 16... cxb5 17. Qxb5+ Kf7 18. Qb7+ Ne7 19. Qxa8) (16... Rc8 $142) 1-0

[Event "5th Sharjah Masters 2022"]
[Site "Sharjah"]
[Date "2022.05.21"]
[Round "1.34"]
[White "Saeed, Ishaq"]
[Black "Sindarov, Javokhir"]
[Result "0-1"]
[ECO "E66"]
[WhiteElo "2397"]
[BlackElo "2609"]
[Annotator "TA"]
[PlyCount "76"]
[EventDate "2022.05.21"]
[EventType "swiss"]
[EventCountry "UAE"]
[SourceTitle "playchess.com"]
[Source "ChessBase"]
[SourceQuality "1"]
[TimeControl "5400+30"]

{[%evp 19,76,6,14,14,39,41,43,50,40,6,22,4,18,4,28,31,55,54,39,34,45,47,59,38,81,77,78,64,58,74,73,54,53,-58,-56,-119,-122,-108,-123,-135,-125,-173,-43,-43,-29,-37,-25,-112,-97,-75,-80,-29979,-29980,-29987,-29985,-29996,-29997,-29998,-29999]} 1. d4 {[%emt 0:02:01]} Nf6 {[%emt 0:00:03]} 2. c4 {[%emt 0:00:17]} g6 {[%emt 0:00:04]} 3. Nf3 {[%emt 0:00:53]} Bg7 {[%emt 0:00:45]} 4. g3 {[%emt 0:00:48]} c5 {[%emt 0:02:45]} 5. Bg2 {[%emt 0:05:24]} Nc6 {[%emt 0:03:00]} 6. O-O {[%emt 0:09:39]} O-O {[%emt 0:03:45]} 7. Nc3 {[%emt 0:00:43]} d6 {[%emt 0:09:39]} 8. d5 {[%emt 0:02:55]} Na5 {[%emt 0:00:33]} 9. Nd2 {[%emt 0:00:09]} a6 {[%emt 0:00:19]} 10. Qc2 {[%emt 0:11:01]} e6 {[%emt 0:08:05]} (10... b5 $5) 11. b3 {[%emt 0:07:43] E66: King's Indian: Fianchetto: 6...c5 7 0-0 Nc6 8 d5.} exd5 {[%emt 0:04:41]} (11... b5 $5) 12. cxd5 {[%emt 0:00:09]} b5 {[%emt 0:00:30]} 13. Bb2 {[%emt 0:01:57] White is slightly better.} Re8 {[%emt 0:00:05]} 14. Nde4 {[%emt 0:17:07] [#]} Nh5 $146 {[%emt 0:09:12]} ({Predecessor:} 14... Bf5) 15. Nd1 {[%emt 0:06:49]} Bf5 {[%emt 0:08:32]} 16. Bxg7 {[%emt 0:00:19]} (16. f3 {feels hotter.} Bxe4 17. fxe4 Bxb2 18. Qxb2 Qg5 19. Qc3) 16... Bxe4 {[%emt 0:00:10]} 17. Bxe4 {[%emt 0:00:07]} Kxg7 {[%emt 0:00:04]} 18. Bf3 {[%emt 0:06:48]} Nf6 {[%emt 0:00:16]} 19. h4 {[%emt 0:05:00]} Rc8 {[%emt 0:04:01]} 20. h5 {[%emt 0:08:06]} Re5 {[%emt 0:01:53]} 21. hxg6 {[%emt 0:00:49]} hxg6 {[%emt 0:01:08]} 22. Kg2 {[%emt 0:00:24]} Nxd5 {[%emt 0:20:13][%cal Od5f4]} 23. Bxd5 {[%emt 0:00:50]} (23. Rh1 $5 {[%cal Rc2d2]}) 23... Rxd5 {[%emt 0:00:13]} 24. Qc3+ {[%emt 0:00:11]} f6 {[%emt 0:01:55]} 25. Rh1 {[%emt 0:00:06]} Nc6 {[%emt 0:05:33]} (25... Rh5 $2 26. Rxh5 gxh5 27. Ne3 $18) 26. Qc1 {[%emt 0:02:15]} ({White should play} 26. Ne3 $14 Rd4 27. Nc2) 26... Rg5 $15 {[%emt 0:03:21] Active counter play!} 27. f4 {[%emt 0:09:21]} (27. Nc3 $15) 27... Rh5 $17 {[%emt 0:00:23]} 28. Rxh5 {[%emt 0:00:06]} gxh5 {[%emt 0:00:04]} 29. Nf2 {[%emt 0:00:38]} Qe8 {[%emt 0:00:52]} 30. e3 {[%emt 0:00:33]} (30. Qd2 $17) 30... d5 {[%emt 0:01:08]} ({Better is} 30... Ne7 $19 31. e4 d5) 31. Qxc5 $15 {[%emt 0:01:28]} Ne7 $36 {[%emt 0:00:51][%mdl 2048] Black fights for an advantage.} 32. Qa7 {[%emt 0:00:30]} Kg6 {[%emt 0:00:55] And now ...Nf5 would win.} 33. g4 {[%emt 0:00:34] Inhibits Nf5.} ({Not} 33. Qxa6 $2 Nf5 34. Qb6 Rc2 $19) (33. Rh1 $1 $11 {keeps the balance.}) 33... hxg4 $17 {[%emt 0:02:32] White must now prevent ...Nf5.} 34. Rh1 {[%emt 0:00:14]} Rc2 {[%emt 0:00:53]} 35. f5+ $2 {[%emt 0:00:53][%mdl 8192] [#] Loses the game.} (35. a4 $17) 35... Nxf5 {[%emt 0:00:45] Black mates.} 36. Qh7+ {[%emt 0:00:54]} Kg5 {[%emt 0:00:03]} 37. Kg1 {[%emt 0:00:48]} Rc1+ {[%emt 0:00:17]} 38. Kg2 {[%emt 0:00:30]} Nxe3+ {[%emt 0:00:06] Weighted Error Value: White=0.44/Black=0.15 (very precise)} 0-1

[Event "5th Sharjah Masters 2022"]
[Site "Sharjah"]
[Date "2022.05.21"]
[Round "1.35"]
[White "Puranik, Abhimanyu"]
[Black "Injac, Teodora"]
[Result "1-0"]
[ECO "C77"]
[WhiteElo "2608"]
[BlackElo "2384"]
[Annotator "TA"]
[PlyCount "125"]
[EventDate "2022.05.21"]
[EventType "swiss"]
[EventCountry "UAE"]
[SourceTitle "playchess.com"]
[Source "ChessBase"]
[SourceQuality "1"]
[TimeControl "5400+30"]

{[%evp 16,125,10,0,20,14,24,21,22,28,42,25,32,20,44,28,39,44,46,21,49,35,38,28,27,32,41,33,20,24,26,14,56,55,68,60,66,67,78,71,82,75,122,93,116,22,173,160,209,172,215,137,210,194,193,168,215,208,239,223,231,220,285,256,238,179,257,260,253,259,279,276,356,354,580,575,550,327,390,372,647,271,299,285,292,235,393,322,307,158,520,511,825,824,796,784,1131,1050,1155,1091,29977,29978,29978,29979,29979,29980,29980,29981,29981,29982,29982,29970]} 1. e4 {[%emt 0:00:27]} e5 {[%emt 0:00:16]} 2. Nf3 {[%emt 0:00:25]} Nc6 {[%emt 0:00:06]} 3. Bb5 {[%emt 0:00:18][%cal Bf1b5,Bb5a4,Ba4b3,Bb3a2][%mdl 32]} a6 {[%emt 0:00:22]} 4. Ba4 {[%emt 0:00:06]} Nf6 {[%emt 0:00:17]} 5. O-O {[%emt 0:00:21]} Be7 {[%emt 0:00:34]} 6. d3 {[%emt 0:00:55]} b5 {[%emt 0:00:46]} 7. Bb3 {[%emt 0:00:05]} d6 {[%emt 0:02:31]} 8. a3 {[%emt 0:01:39]} O-O {[%emt 0:02:40]} 9. Nc3 {[%emt 0:02:07]} Na5 {[%emt 0:07:22] C77: Ruy Lopez: 3...a6 4 Ba4 Nf6, unusual lines.} 10. Ba2 {[%emt 0:00:23]} c5 {[%emt 0:00:24]} 11. b4 {[%emt 0:05:24]} Nc6 {[%emt 0:08:43] The position is equal.} 12. Nd5 {[%emt 0:00:31] [#]} Bd7 $146 {[%emt 0:09:57]} ({Predecessor:} 12... Be6 13. c3 Re8 14. Rb1 Rc8 15. h3 h6 16. Re1 Bf8 17. Be3 Bxd5 18. exd5 Ne7 {½-½ (132) Sychev,K (2553)-Tabatabaei,M (2643) Chess.com INT 2022}) 13. Rb1 {[%emt 0:08:42]} Nxd5 {[%emt 0:06:41]} 14. Bxd5 {[%emt 0:01:14]} cxb4 {[%emt 0:04:37]} 15. axb4 {[%emt 0:00:06]} Rc8 {[%emt 0:00:18]} 16. Be3 {[%emt 0:07:03]} Bf6 {[%emt 0:01:53]} 17. Nd2 {[%emt 0:04:49]} Qc7 {[%emt 0:04:25]} 18. Rb2 {[%emt 0:06:05]} Ne7 {[%emt 0:02:11]} 19. Bb3 {[%emt 0:00:33]} Nc6 {[%emt 0:06:44]} 20. Ba2 {[%emt 0:04:25]} Nd4 {[%emt 0:02:31]} 21. Bxd4 {[%emt 0:05:53]} exd4 {[%emt 0:00:02]} 22. f4 {[%emt 0:02:52]} Qc3 {[%emt 0:07:53]} 23. Qc1 {[%emt 0:02:21]} Qc7 {[%emt 0:03:37]} 24. Nf3 {[%emt 0:02:52]} Be6 {[%emt 0:05:54]} 25. Qb1 {[%emt 0:05:48]} Rfe8 {[%emt 0:03:04]} 26. h3 {[%emt 0:02:35]} Qd7 {[%emt 0:05:41]} 27. Qe1 {[%emt 0:06:51]} Bd8 {[%emt 0:04:50][%cal Of7f5]} 28. Kh1 {[%emt 0:03:40]} Bb6 {[%emt 0:00:50]} (28... d5 $142) 29. Qh4 {[%emt 0:03:05]} f6 {[%emt 0:01:59] Against Ng5} 30. Ra1 {[%emt 0:01:58]} (30. Qg4 $16) 30... Bxa2 $2 {[%emt 0:02:04]} (30... d5 $11 {and Black is okay.}) 31. Rbxa2 $18 {[%emt 0:00:10]} Qb7 {[%emt 0:00:13]} (31... f5 $16) 32. Qh5 {[%emt 0:01:11]} g6 {[%emt 0:01:23]} 33. Qh4 {[%emt 0:01:52]} Kg7 {[%emt 0:00:26]} (33... d5 $16) 34. Qg4 {[%emt 0:04:05]} (34. Rxa6 Rxc2 35. f5 (35. e5 dxe5 36. fxe5 fxe5 $11) 35... Rec8 36. fxg6 Rc1+ 37. Kh2 hxg6 $16) 34... d5 {[%emt 0:03:07]} 35. e5 {[%emt 0:02:57]} f5 {[%emt 0:00:10]} (35... fxe5 {was worth a try.} 36. fxe5 (36. Nxe5 Ra8 $16) 36... Ra8) 36. Qh4 {[%emt 0:00:16]} Ra8 {[%emt 0:01:02]} 37. g4 {[%emt 0:02:11] gxf5 is the strong threat.} Bd8 {[%emt 0:02:52] [#]} 38. Qg3 {[%emt 0:00:11] Black must now prevent gxf5.} ({Don't play} 38. g5 $6 Ra7 39. Kg2 (39. Nxd4 Bb6 $16) 39... Kg8 40. Nxd4 Bb6) 38... fxg4 {[%emt 0:00:15]} 39. hxg4 {[%emt 0:00:16] aiming for f5.} (39. Qxg4 $6 Kh8 40. Nxd4 Ra7 $18) 39... Kh8 {[%emt 0:00:17]} 40. Kg2 {[%emt 0:02:13]} ({Don't do} 40. Nxd4 Bb6) 40... a5 {[%emt 0:00:22]} (40... Be7 {was called for.}) 41. bxa5 {[%emt 0:00:12]} Ra6 {[%emt 0:00:05]} 42. Nxd4 {[%emt 0:00:57]} Be7 {[%emt 0:01:13]} 43. Rh1 {[%emt 0:00:51]} Bc5 {[%emt 0:00:15]} 44. Nf3 {[%emt 0:00:15]} b4 $2 {[%emt 0:00:45]} (44... Rg8 45. d4 Be7) 45. Ng5 {[%emt 0:02:39]} Re7 {[%emt 0:00:01]} 46. Qf3 {[%emt 0:00:43]} Bd4 {[%emt 0:00:22]} 47. Kg3 {[%emt 0:03:46]} Kg8 $2 {[%emt 0:00:37]} (47... Qc6 48. e6 Kg8) 48. Qe2 {[%emt 0:02:46]} (48. c3 $142 Bxc3 49. Rah2) 48... Qb5 {[%emt 0:00:47]} 49. Nf3 {[%emt 0:00:16]} Bc3 {[%emt 0:00:18]} 50. Qh2 {[%emt 0:00:13]} d4 $2 {[%emt 0:00:52]} (50... Rd7 51. Ng5 Qb7) 51. Qh4 {[%emt 0:01:29]} Raa7 {[%emt 0:00:20]} 52. f5 {[%emt 0:00:53]} ({Better is} 52. Qg5 $18) 52... gxf5 $2 {[%emt 0:00:08] Loses the game.} (52... Qd5 $16 {is more resistant.}) 53. gxf5 {[%emt 0:00:04]} Rxe5 {[%emt 0:00:32]} (53... Rg7+ $142 54. Kf2 Qd5) 54. Nxe5 {[%emt 0:02:13]} Qxe5+ {[%emt 0:00:13]} 55. Qf4 {[%emt 0:00:04]} Rg7+ {[%emt 0:01:39]} 56. Kf3 {[%emt 0:00:01]} Qd5+ {[%emt 0:00:32]} 57. Qe4 {[%emt 0:00:05]} Qd8 {[%emt 0:00:25]} 58. a6 {[%emt 0:00:39] White mates.} Re7 {[%emt 0:00:14] [#]} 59. a7 $1 {[%emt 0:01:35]} Rxe4 {[%emt 0:00:15]} 60. a8=Q {[%emt 0:00:16]} ({Less strong is} 60. dxe4 Qa8 61. Rh6 b3 62. cxb3 d3 $18) 60... Re8 {[%emt 0:01:05]} 61. Qxd8 {[%emt 0:00:08]} Rxd8 {[%emt 0:00:07]} 62. Ra7 {[%emt 0:00:07]} Rf8 {[%emt 0:00:46]} 63. Ke4 {[%emt 0:02:53] Weighted Error Value: White=0.33/Black=0.48} 1-0